bitfinex/quotes_SOLUSD_20260117
["timestamp","ask_amount","ask_price","bid_price","bid_amount"]
[1768651224436,2.62838299,143.89,143.87,2.56055964]
[1768651224633,2.62838299,143.89,143.86,2.5737714]
[1768651226141,9.57841224,143.89,143.86,2.5737714]
[1768651227541,2.62838299,143.88,143.85,2.5737714]
[1768651227743,2.598383,143.88,143.85,2.5737714]
[1768651229460,9.02641628,143.89,143.85,2.5737714]
[1768651229626,11.65479927,143.89,143.85,2.5737714]
[1768651230345,9.57869455,143.88,143.85,2.5737714]
[1768651230644,9.57869455,143.88,143.84,2.5737714]
[1768651230645,2.62838299,143.87,143.84,2.5737714]
[1768651231149,19.92477002,143.87,143.84,2.5737714]
[1768651232224,6.95120255,143.86,143.84,2.5737714]
[1768651232419,6.92120256,143.86,143.84,2.5737714]
[1768651232817,9.48219109,143.86,143.84,2.5737714]
[1768651233224,9.4521911,143.86,143.84,2.5737714]
[1768651233448,9.42219111,143.86,143.84,2.5737714]
[1768651233635,11.50058634,143.86,143.83,2.58086211]
[1768651233837,2.56098853,143.85,143.82,2.58086211]
[1768651234620,4.63938376,143.85,143.82,2.58086211]
[1768651237142,4.63938376,143.84,143.81,2.58086211]
[1768651237727,15.22,143.84,143.81,2.58086211]
[1768651243654,15.22,143.84,143.81,9.53446728]
[1768651243947,15.22,143.84,143.82,2.58086211]
[1768651247228,15.19000001,143.84,143.82,2.58086211]
[1768651249446,17.26839524,143.84,143.82,2.58086211]
[1768651249650,19.82938377,143.84,143.81,2.58086211]
[1768651250858,17.26839524,143.84,143.81,2.58086211]
[1768651254961,19.84629256,143.84,143.81,2.58086211]
[1768651256054,2.07839523,143.83,143.81,2.58086211]
[1768651256361,4.65629255,143.83,143.8,2.72845145]
[1768651257150,2.07839523,143.82,143.8,2.72845145]
[1768651257344,4.65629255,143.82,143.8,2.72845145]
[1768651259158,2.57789732,143.81,143.78,9.68330988]
[1768651259482,2.07839523,143.82,143.79,2.72845145]
[1768651260160,2.07839523,143.81,143.78,2.72845145]
[1768651260633,17.29839523,143.81,143.78,2.72845145]
[1768651261251,19.87629255,143.81,143.78,2.72845145]
[1768651262458,4.65629255,143.8,143.77,9.6838496]
[1768651263361,2.57789732,143.8,143.77,9.6838496]
[1768651263661,4.65629255,143.8,143.77,9.6838496]
[1768651264361,4.65629255,143.8,143.78,2.72845145]
[1768651264959,2.07839523,143.8,143.78,2.72845145]
[1768651265259,26.82994073,143.81,143.78,2.72845145]
[1768651281776,6.95265243,143.83,143.79,2.51825401]
[1768651282070,24.8161844,143.83,143.79,2.51825401]
[1768651283075,26.89457963,143.83,143.79,2.51825401]
[1768651288179,24.8161844,143.83,143.79,2.51825401]
[1768651288471,9.59582899,143.84,143.8,2.51825401]
[1768651289384,9.59582899,143.84,143.8,6.95406708]
[1768651289554,9.59582899,143.84,143.81,2.51825401]
[1768651301497,11.67485188,143.84,143.81,2.51825401]
[1768651303587,6.95229702,143.84,143.81,2.51825401]
[1768651305298,9.50535908,143.84,143.81,2.51825401]
[1768651306693,11.58438197,143.84,143.81,2.51825401]
[1768651307470,9.50535908,143.84,143.81,2.51825401]
[1768651310303,6.95229702,143.84,143.81,2.51825401]
[1768651310600,9.50535908,143.84,143.81,2.51825401]
[1768651314394,6.95229702,143.84,143.81,2.51825401]
[1768651315506,9.55327003,143.84,143.81,2.51825401]
[1768651318903,2.60097301,143.84,143.81,2.51825401]
[1768651320403,2.60097301,143.84,143.81,9.4718618]
[1768651320606,2.60097301,143.84,143.82,2.68765791]
[1768651320904,2.60097301,143.84,143.82,2.62765791]
[1768651321299,9.03092447,143.85,143.82,2.62765791]
[1768651321492,6.95406708,143.87,143.82,9.03215495]
[1768651321493,16.50591769,143.87,143.82,9.03215495]
[1768651322013,9.55185061,143.87,143.82,9.03215495]
[1768651322784,9.55185061,143.87,143.84,2.68765791]
[1768651330695,6.9508776,143.87,143.84,2.68765791]
[1768651331513,9.55185061,143.87,143.84,2.68765791]
[1768651338524,2.60097301,143.86,143.84,2.68765791]
[1768651338927,9.55185061,143.87,143.84,2.68765791]
[1768651339722,2.60097301,143.87,143.84,9.63975832]
[1768651340121,11.63028493,143.88,143.85,2.68765791]
[1768651341026,2.60097301,143.87,143.85,2.68765791]
[1768651348229,2.64881099,143.86,143.84,2.47190003]
[1768651357837,9.51224065,143.87,143.84,2.47190003]
[1768651358043,11.5904751,143.87,143.84,2.47190003]
[1768651361732,9.51224065,143.87,143.84,2.47190003]
[1768651370634,9.51224065,143.87,143.81,2.49045711]
[1768651370635,2.5614532,143.84,143.81,2.49045711]
[1768651370823,2.07823445,143.83,143.81,2.49045711]
[1768651377725,9.5784227,143.85,143.82,2.64409537]
[1768651377950,2.62665243,143.86,143.83,2.64409537]
[1768651378146,9.57747142,143.87,143.84,2.64409537]
[1768651378334,5.20086203,143.86,143.84,2.64409537]
[1768651378530,9.57747142,143.87,143.84,2.64409537]
[1768651378740,5.20065456,143.86,143.84,2.64409537]
[1768651379035,9.57747142,143.87,143.84,2.64409537]
[1768651379236,5.20065582,143.86,143.84,2.64409537]
[1768651379456,9.57747142,143.87,143.84,2.64409537]
[1768651379645,5.2005234,143.86,143.84,2.64409537]
[1768651379838,9.57747142,143.87,143.84,2.64409537]
[1768651380037,5.20055628,143.86,143.84,2.64409537]
[1768651380237,9.57747142,143.87,143.84,2.64409537]
[1768651380438,5.2003831,143.86,143.84,2.64409537]
[1768651380737,9.57747142,143.87,143.84,2.64409537]
[1768651380935,5.20041724,143.86,143.84,2.64409537]
[1768651381151,9.57747142,143.87,143.84,2.64409537]
[1768651381354,5.20041594,143.86,143.84,2.64409537]
[1768651381559,9.57747142,143.87,143.84,2.64409537]
[1768651393067,11.65570587,143.87,143.84,2.64409537]
[1768651393681,2.62665243,143.84,143.8,2.64409537]
[1768651393901,2.07823445,143.83,143.8,2.64409537]
[1768651394075,2.07823445,143.83,143.79,2.64409537]
[1768651395261,9.03112983,143.83,143.79,2.64409537]
[1768651395892,11.65778226,143.83,143.79,2.64409537]
[1768651397690,11.65778226,143.83,143.79,9.59864885]
[1768651398188,11.65778226,143.83,143.8,2.64409537]
[1768651402190,2.69383387,143.82,143.79,6.95455348]
[1768651402488,2.69383387,143.82,143.79,2.60172951]
[1768651408791,11.72555806,143.82,143.79,2.60172951]
[1768651408978,9.64732361,143.82,143.79,2.60172951]
[1768651409471,11.72555806,143.82,143.79,2.60172951]
[1768651411192,9.64732361,143.82,143.79,2.60172951]
[1768651420406,2.57603316,143.81,143.78,2.71172552]
[1768651420589,4.65583,143.81,143.78,2.71172552]
[1768651422699,11.60960162,143.81,143.78,2.71172552]
[1768651424210,2.07979684,143.83,143.79,2.71172552]
[1768651424414,17.79603316,143.83,143.79,2.71172552]
[1768651425408,24.74870444,143.83,143.8,2.71172552]
[1768651428009,9.52870444,143.83,143.8,2.71172552]
[1768651436194,2.53801262,143.82,143.8,2.71172552]
[1768651436522,9.4906839,143.83,143.8,2.71172552]
[1768651438220,5.20915097,143.82,143.8,2.71172552]
[1768651438424,9.4906839,143.83,143.8,2.71172552]
[1768651438626,5.20915223,143.82,143.8,2.71172552]
[1768651438800,9.4906839,143.83,143.8,2.71172552]
[1768651438999,5.20915097,143.82,143.8,2.71172552]
[1768651439300,9.4906839,143.83,143.8,2.71172552]
[1768651439501,5.20948782,143.82,143.8,2.71172552]
[1768651439702,9.4906839,143.83,143.8,2.71172552]
[1768651439907,5.20948782,143.82,143.8,2.71172552]
[1768651440106,9.4906839,143.83,143.8,2.71172552]
[1768651440411,5.20948782,143.82,143.8,2.71172552]
[1768651440598,9.4906839,143.83,143.8,2.71172552]
[1768651440800,5.20949993,143.82,143.8,2.71172552]
[1768651441032,9.4906839,143.83,143.8,2.71172552]
[1768651441200,5.20949938,143.82,143.8,2.71172552]
[1768651441406,9.4906839,143.83,143.8,2.71172552]
[1768651441616,5.20963787,143.82,143.8,2.71172552]
[1768651441813,9.49033621,143.84,143.8,2.71172552]
[1768651442035,9.49033621,143.84,143.81,2.65459677]
[1768651442738,6.95232359,143.84,143.81,2.65459677]
[1768651443829,6.95168578,143.85,143.81,2.65459677]
[1768651444017,18.15307518,143.86,143.82,1.20410554]
[1768651445021,9.48877856,143.87,143.83,1.20414154]
[1768651445525,2.53801262,143.87,143.83,1.20414154]
[1768651446030,2.53801262,143.88,143.83,1.20414154]
[1768651448233,9.48827873,143.88,143.84,8.15641613]
[1768651450831,2.53801262,143.87,143.84,8.15641613]
[1768651452129,2.53801262,143.87,143.83,1.20870113]
[1768651452325,2.53801262,143.87,143.79,1.20870113]
[1768651452326,2.53801262,143.86,143.79,1.20870113]
[1768651454342,2.53801262,143.84,143.81,1.21156363]
[1768651458430,2.53801262,143.84,143.81,8.16489251]
[1768651490244,2.53801262,143.84,143.8,6.95398434]
[1768651491554,2.54110048,143.83,143.8,6.95398434]
[1768651492650,2.54110048,143.83,143.79,1.25507758]
[1768651492957,2.54110048,143.83,143.79,8.20948363]
[1768651494151,2.62694438,143.82,143.77,25.60359748]
[1768651497455,2.62694438,143.81,143.77,25.60359748]
[1768651497664,2.59694438,143.81,143.77,25.60359748]
[1768651500454,6.9536724,143.81,143.77,6.955554]
[1768651501961,6.95313586,143.82,143.77,6.955554]
[1768651502457,2.62694438,143.81,143.77,6.955554]
[1768651505858,2.62694438,143.8,143.77,6.955554]
[1768651507565,2.59694438,143.8,143.77,6.955554]
[1768651508562,6.95418176,143.8,143.76,8.51670229]
[1768651508758,43.80410877,143.83,143.76,7.15600928]
[1768651508951,5.19037518,143.82,143.76,7.15600928]
[1768651509153,43.80410877,143.83,143.76,7.15600928]
[1768651509342,5.18944239,143.82,143.76,7.15600928]
[1768651509545,2.62694438,143.81,143.76,7.15600928]
[1768651510567,2.62694438,143.8,143.76,7.15600928]
[1768651513047,2.62694438,143.8,143.76,8.52033641]
[1768651519172,2.62694438,143.8,143.77,1.36846717]
[1768651522072,9.57917817,143.82,143.78,1.371072]
[1768651522977,2.6257108,143.81,143.78,1.371072]
[1768651524075,13.82746132,143.83,143.79,1.37232997]
[1768651524575,2.6257108,143.84,143.79,1.37232997]
[1768651525453,2.6257108,143.84,143.8,6.95410292]
[1768651525658,2.6257108,143.84,143.81,1.3735592]
[1768651533884,6.95188319,143.85,143.81,1.3735592]
[1768651534057,2.60900359,143.87,143.82,1.37875244]
[1768651534264,2.60900359,143.88,143.82,1.37875244]
[1768651534583,9.55924765,143.88,143.82,1.37875244]
[1768651534764,2.60900359,143.87,143.82,1.37875244]
[1768651535157,2.60900359,143.87,143.81,8.3327204]
[1768651536476,9.55998599,143.87,143.81,8.3327204]
[1768651536784,2.60900359,143.86,143.81,8.3327204]
[1768651536984,2.60900359,143.86,143.82,1.38036695]
[1768651538180,2.60900359,143.86,143.82,8.33310933]
[1768651538863,45.94385179,143.92,143.82,8.33310933]
[1768651538864,2.60900359,143.89,143.83,1.38141262]
[1768651539860,2.60900359,143.89,143.85,1.38192646]
[1768651541469,2.60900359,143.91,143.85,1.38192646]
[1768651542070,2.60900359,143.91,143.87,1.38293651]
[1768651542273,2.60900359,143.92,143.87,1.32293653]
[1768651544378,2.60900359,143.92,143.88,8.27415981]
[1768651557502,6.94843986,143.92,143.86,1.33101827]
[1768651557682,2.7720772,143.91,143.86,1.33101827]
[1768651558116,2.7720772,143.91,143.84,1.33101827]
[1768651561302,2.7720772,143.91,143.85,25.66321426]
[1768651561303,2.7720772,143.9,143.85,25.66321426]
[1768651568015,2.7720772,143.89,143.83,25.66945193]
[1768651569099,2.7720772,143.88,143.82,1.33555766]
[1768651573214,2.7720772,143.86,143.83,6.95265243]
[1768651573591,2.7720772,143.86,143.83,8.2900903]
[1768651579719,2.7720772,143.88,143.84,1.33955536]
[1768651580818,2.7720772,143.88,143.85,6.95168578]
[1768651581020,2.7720772,143.88,143.85,8.29158]
[1768651581901,43.79426568,143.91,143.86,1.34056031]
[1768651581902,2.65167767,143.89,143.86,1.34056031]
[1768651585100,2.65167767,143.9,143.87,1.34153104]
[1768651587236,2.65167767,143.9,143.87,8.29218167]
[1768651591336,2.65167767,143.9,143.86,1.34337441]
[1768651592533,2.65167767,143.9,143.86,8.29410873]
[1768651600310,2.60226536,143.89,143.86,8.29410873]
[1768651601833,2.60226536,143.9,143.87,1.34669909]
[1768651604935,2.60226536,143.9,143.87,8.29733012]
[1768651607441,2.60226536,143.9,143.86,1.34819638]
[1768651608934,2.60226536,143.9,143.86,8.29898452]
[1768651639164,2.60226536,143.9,143.87,1.35464342]
[1768651640371,2.60226536,143.9,143.88,6.9502363]
[1768651646275,2.63728872,143.91,143.88,1.35591588]
[1768651647880,2.63728872,143.91,143.88,8.30601158]
[1768651660469,2.76027947,143.92,143.89,1.35813371]
[1768651665094,2.76027947,143.92,143.88,1.35862702]
[1768651669413,2.76027947,143.92,143.89,6.94975328]
[1768651679400,6.9484632,143.92,143.87,6.95053168]
[1768651679597,2.54801229,143.91,143.87,6.95053168]
[1768651682012,2.54801229,143.91,143.86,6.95120255]
[1768651682511,2.54801229,143.91,143.86,8.31188521]
[1768651682718,2.54801229,143.9,143.86,8.31188521]
[1768651686096,2.54801229,143.9,143.86,25.6898916]
[1768651687193,2.54801229,143.9,143.87,1.36106086]
[1768651689314,2.54801229,143.9,143.87,8.31134159]
[1768651689715,2.54801229,143.91,143.88,1.36133326]
[1768651690930,9.49645031,143.92,143.89,1.36142198]
[1768651691799,9.49645031,143.92,143.88,6.95006129]
[1768651692019,2.54801229,143.91,143.88,8.31157098]
[1768651693925,2.54801229,143.91,143.88,1.36150969]
[1768651698225,2.54801229,143.91,143.88,8.31159426]
[1768651707235,2.53748,143.92,143.89,1.3627835]
[1768651707734,2.53748,143.92,143.88,8.31294013]
[1768651720343,2.53748,143.92,143.89,1.36372044]
[1768651722441,2.53748,143.92,143.89,8.3132559]
[1768651724045,2.53748,143.92,143.88,1.36396146]
[1768651726051,1.53748,143.92,143.88,1.36396146]
[1768651726945,1.53748,143.92,143.89,6.94975328]
[1768651728750,1.53748,143.92,143.89,9.31400076]
[1768651734632,2.73295748,143.93,143.9,2.36538301]
[1768651736361,14.034708,143.94,143.91,2.36558113]
[1768651737134,5.20539315,143.93,143.91,2.36558113]
[1768651737342,14.034708,143.94,143.91,2.36558113]
[1768651737543,5.20492952,143.93,143.91,2.36558113]
[1768651737755,14.034708,143.94,143.91,2.36558113]
[1768651737960,5.20492952,143.93,143.91,2.36558113]
[1768651738165,14.034708,143.94,143.91,2.36558113]
[1768651738964,11.30175052,143.94,143.92,2.36616193]
[1768651739161,0.1,143.94,143.92,2.30616194]
[1768651740270,2.83295748,143.94,143.9,6.94910131]
[1768651741166,2.83295748,143.94,143.9,9.25563942]
[1768651742163,2.83295748,143.94,143.91,2.30672296]
[1768651743464,2.83295748,143.94,143.91,9.25504539]
[1768651743839,2.83295748,143.94,143.91,6.94832243]
[1768651745971,5.20336829,143.93,143.9,9.25615661]
[1768651746148,9.78041067,143.94,143.9,9.25615661]
[1768651746469,5.20344969,143.93,143.9,9.25615661]
[1768651746663,2.83295748,143.94,143.9,9.25615661]
[1768651746965,5.20344843,143.93,143.9,9.25615661]
[1768651747270,2.83295748,143.94,143.9,9.25615661]
[1768651747570,5.2035384,143.93,143.9,9.25615661]
[1768651747742,2.83295748,143.94,143.9,9.25615661]
[1768651748066,5.20353967,143.93,143.9,9.25615661]
[1768651748274,2.83295748,143.94,143.9,9.25615661]
[1768651748565,5.20364571,143.93,143.9,9.25615661]
[1768651748770,2.83295748,143.94,143.9,9.25615661]
[1768651748947,5.20364444,143.93,143.9,9.25615661]
[1768651749143,2.83295748,143.94,143.9,9.25615661]
[1768651749438,5.2037673,143.93,143.9,9.25615661]
[1768651749638,2.83295748,143.94,143.9,9.25615661]
[1768651749865,5.20313253,143.93,143.9,9.25615661]
[1768651750065,2.83295748,143.94,143.9,9.25615661]
[1768651750268,5.20313253,143.93,143.9,9.25615661]
[1768651750444,2.83295748,143.94,143.9,9.25615661]
[1768651750648,5.20327094,143.93,143.9,9.25615661]
[1768651750846,2.83295748,143.94,143.9,9.25615661]
[1768651751144,7.93622969,143.93,143.9,9.25615661]
[1768651751346,2.73295748,143.93,143.9,9.25615661]
[1768651763180,5.20388172,143.92,143.9,9.25615661]
[1768651763382,2.73295748,143.93,143.9,9.25615661]
[1768651763569,5.20388172,143.92,143.9,9.25615661]
[1768651763873,2.73295748,143.93,143.9,9.25615661]
[1768651764064,5.20388298,143.92,143.9,9.25615661]
[1768651764361,2.73295748,143.93,143.9,9.25615661]
[1768651764561,5.20422016,143.92,143.9,9.25615661]
[1768651764864,2.73295748,143.93,143.9,9.25615661]
[1768651765059,5.20422143,143.92,143.9,9.25615661]
[1768651765273,2.73295748,143.93,143.9,9.25615661]
[1768651765470,5.20428944,143.92,143.9,9.25615661]
[1768651765670,2.73295748,143.93,143.9,9.25615661]
[1768651765871,5.20338393,143.92,143.9,9.25615661]
[1768651766070,2.73295748,143.93,143.9,9.25615661]
[1768651766284,5.20338519,143.92,143.9,9.25615661]
[1768651766482,2.73295748,143.93,143.9,9.25615661]
[1768651766680,5.20387558,143.92,143.89,2.31063856]
[1768651766862,2.73295748,143.93,143.89,2.31063856]
[1768651767160,5.20387863,143.92,143.89,2.31063856]
[1768651767357,2.73295748,143.93,143.89,2.31063856]
[1768651767583,5.20372423,143.92,143.89,2.31063856]
[1768651767788,2.73295748,143.93,143.9,6.94927032]
[1768651767967,5.20372738,143.92,143.9,6.94927032]
[1768651768168,2.73295748,143.93,143.9,6.94927032]
[1768651768488,5.20373348,143.92,143.9,6.94927032]
[1768651768679,2.73295748,143.93,143.9,6.94927032]
[1768651768882,5.20373348,143.92,143.9,6.94927032]
[1768651769082,2.73295748,143.93,143.9,6.94927032]
[1768651769278,5.20381523,143.92,143.9,6.94927032]
[1768651769475,2.73295748,143.93,143.9,6.94927032]
[1768651769777,5.20338537,143.92,143.9,6.94927032]
[1768651769978,2.73295748,143.93,143.9,6.94927032]
[1768651770278,5.20359698,143.92,143.9,6.94927032]
[1768651770476,2.73295748,143.93,143.9,6.94927032]
[1768651770678,5.20368248,143.92,143.9,6.94927032]
[1768651770879,2.73295748,143.93,143.9,6.94927032]
[1768651771079,5.20368686,143.92,143.9,6.94927032]
[1768651771277,2.73295748,143.93,143.9,6.94927032]
[1768651771480,5.20377639,143.92,143.9,6.94927032]
[1768651771778,2.73295748,143.93,143.9,6.94927032]
[1768651771978,5.20332918,143.92,143.9,6.94927032]
[1768651772179,2.73295748,143.93,143.9,6.94927032]
[1768651772481,5.20342326,143.92,143.9,6.94927032]
[1768651772681,2.73295748,143.93,143.9,6.94927032]
[1768651772882,5.20342326,143.92,143.9,6.94927032]
[1768651773096,2.73295748,143.93,143.9,6.94927032]
[1768651773281,5.2035225,143.92,143.9,6.94927032]
[1768651773484,2.73295748,143.93,143.9,6.94927032]
[1768651773671,5.2035225,143.92,143.9,6.94927032]
[1768651773872,2.73295748,143.93,143.9,6.94927032]
[1768651774071,5.20336688,143.92,143.9,6.94927032]
[1768651774279,2.73295748,143.93,143.9,6.94927032]
[1768651774570,5.20347484,143.92,143.9,6.94927032]
[1768651774770,2.73295748,143.93,143.9,6.94927032]
[1768651774994,5.20347484,143.92,143.9,6.94927032]
[1768651775196,2.73295748,143.93,143.9,6.94927032]
[1768651779299,2.73295748,143.93,143.9,2.31218893]
[1768651780376,2.73295748,143.93,143.9,9.26106437]
[1768651786807,2.73295748,143.93,143.9,6.94887544]
[1768651793414,2.73295748,143.93,143.9,9.26258659]
[1768651800414,2.73295748,143.93,143.9,6.94887544]
[1768651804918,2.73295748,143.93,143.88,28.57476897]
[1768651805114,2.73295748,143.93,143.9,2.3147526]
[1768651806622,2.73295748,143.93,143.9,9.26359276]
[1768651815429,2.73295748,143.93,143.88,16.07319643]
[1768651815619,4.63278698,143.9,143.86,6.95082106]
[1768651815930,2.52657713,143.89,143.86,9.26640945]
[1768651816131,2.49657713,143.89,143.86,9.26640945]
[1768651816626,2.07620985,143.91,143.87,2.37565924]
[1768651818123,2.55657713,143.9,143.87,9.32626875]
[1768651821229,4.63278698,143.9,143.87,9.32626875]
[1768651821527,2.55657713,143.9,143.87,9.32626875]
[1768651826939,2.52657713,143.9,143.87,9.32626875]
[1768651854963,2.52657713,143.9,143.87,6.95060951]
[1768651856966,4.60360776,143.9,143.87,6.95060951]
[1768651857158,2.78275852,143.89,143.87,6.95060951]
[1768651857469,2.75275852,143.89,143.87,6.95060951]
[1768651862572,2.72275852,143.89,143.87,6.95060951]
[1768651863172,2.07703063,143.91,143.87,2.46806519]
[1768651864775,2.78275852,143.9,143.87,9.4183162]
[1768651866344,2.78275852,143.9,143.86,26.79686381]
[1768651873473,2.78275852,143.89,143.86,26.79686381]
[1768651879580,2.78275852,143.9,143.87,2.46863424]
[1768651880685,2.78275852,143.9,143.88,6.9502363]
[1768651890570,2.75954325,143.92,143.88,2.07703063]
[1768651890778,2.75954325,143.93,143.89,2.46897306]
[1768651896202,2.75954325,143.93,143.9,9.41839597]
[1768651914414,2.70938183,143.92,143.87,7.04704226]
[1768651914597,4.78561509,143.89,143.86,2.46954463]
[1768651914929,2.70938183,143.89,143.86,2.46954463]
[1768651915292,2.70938183,143.89,143.86,9.42042284]
[1768651920319,2.67938183,143.89,143.86,9.42042284]
[1768651923644,4.75561509,143.89,143.86,9.42042284]
[1768651925011,4.78561509,143.88,143.86,6.95087821]
[1768651927135,4.75561507,143.88,143.86,6.95087821]
[1768651928436,2.67938181,143.88,143.86,6.95087821]
[1768651929433,2.64938181,143.88,143.86,6.95087821]
[1768651934340,2.61938181,143.88,143.86,6.95087821]
[1768651935824,2.07623326,143.89,143.87,2.61690296]
[1768651936032,2.07623326,143.9,143.87,2.61690296]
[1768651936342,2.07623326,143.9,143.86,9.56778117]
[1768651937737,2.70938183,143.89,143.86,9.56778117]
[1768651942046,4.78561509,143.89,143.86,9.56778117]
[1768651947443,2.70938183,143.89,143.86,9.56778117]
[1768651947743,4.78561509,143.89,143.86,9.56778117]
[1768651954845,4.78374583,143.9,143.87,2.53890868]
[1768651955031,2.70751257,143.9,143.87,2.53890868]
[1768651956042,2.70751257,143.9,143.87,9.48944757]
[1768651956548,2.70751257,143.91,143.88,2.53890868]
[1768651956740,2.07623326,143.93,143.88,2.53890868]
[1768651956741,2.70751257,143.92,143.88,2.53890868]
[1768651957929,2.70751257,143.92,143.89,9.48866196]
[1768651962159,2.70751257,143.92,143.9,2.53890868]
[1768651962350,2.70751257,143.92,143.9,2.47890869]
[1768651962859,2.70751257,143.92,143.88,6.9502363]
[1768651963851,9.02414626,143.93,143.88,6.9502363]
[1768651964060,2.70751257,143.93,143.88,26.40206033]
[1768651964248,2.70751257,143.93,143.89,2.53890868]
[1768651965835,1.70751257,143.93,143.9,2.53890868]
[1768651966761,10.73158851,143.93,143.9,2.53890868]
[1768651967461,2.07665876,143.92,143.89,9.48824529]
[1768651967668,2.07665876,143.92,143.89,2.53890868]
[1768651967964,4.78417133,143.92,143.89,2.53890868]
[1768651974466,2.70751257,143.92,143.89,2.53890868]
[1768651974643,4.78417133,143.92,143.89,2.53890868]
[1768651986580,4.78417133,143.92,143.89,9.48861808]
[1768651990773,2.57729476,143.91,143.89,9.48861808]
[1768652001185,4.65395352,143.92,143.89,9.48861808]
[1768652008594,2.77209511,143.9,143.87,9.69394081]
[1768652008890,4.84875387,143.9,143.87,9.69394081]
[1768652012627,2.77209511,143.9,143.87,9.69394081]
[1768652012826,2.77209511,143.9,143.86,9.69402273]
[1768652012827,4.62505708,143.89,143.86,9.69402273]
[1768652013129,4.59505708,143.89,143.86,9.69402273]
[1768652013338,2.51839832,143.89,143.86,9.69402273]
[1768652015227,4.62505708,143.9,143.87,2.74282018]
[1768652015408,2.54839832,143.91,143.88,2.74282018]
[1768652017342,2.54839832,143.91,143.88,9.69278887]
[1768652033238,2.54839832,143.91,143.89,2.76029084]
[1768652034155,2.07697568,143.92,143.89,2.76029084]
[1768652034460,5.19430941,143.91,143.89,2.76029084]
[1768652034641,4.67794386,143.92,143.89,2.76029084]
[1768652034840,5.19388511,143.91,143.89,2.76029084]
[1768652035042,2.60096818,143.91,143.88,2.76029084]
[1768652035965,2.60096818,143.91,143.88,9.71021981]
[1768652036761,2.60096818,143.91,143.89,2.76029084]
[1768652036967,4.67794386,143.92,143.89,2.76029084]
[1768652037262,5.1940908,143.91,143.89,2.76029084]
[1768652037437,4.67794386,143.92,143.89,2.76029084]
[1768652037640,5.19367194,143.91,143.89,2.76029084]
[1768652037859,4.67794386,143.92,143.89,2.76029084]
[1768652038066,4.67794386,143.92,143.89,9.70986025]
[1768652038964,2.60096818,143.92,143.89,9.70986025]
[1768652039161,4.67794386,143.92,143.89,9.70986025]
[1768652043152,5.1926792,143.91,143.89,2.76029084]
[1768652043355,4.67794386,143.92,143.89,2.76029084]
[1768652049567,4.67794386,143.91,143.89,2.76029084]
[1768652049770,4.67794386,143.91,143.88,2.76029084]
[1768652053385,2.60096818,143.91,143.88,2.76029084]
[1768652053685,4.67794386,143.91,143.88,2.76029084]
[1768652058190,2.60096818,143.91,143.88,2.76029084]
[1768652058486,11.62627579,143.92,143.89,2.76029084]
[1768652058660,2.60096818,143.91,143.88,9.71037582]
[1768652058864,4.67794386,143.91,143.88,9.71037582]
[1768652059364,2.07697568,143.91,143.89,2.76029084]
[1768652059990,4.67794386,143.92,143.89,2.76029084]
[1768652060998,2.60096818,143.92,143.89,9.70999462]
[1768652061294,4.67794386,143.92,143.89,9.70999462]
[1768652065999,2.60096818,143.92,143.89,9.70999462]
[1768652066197,4.67794386,143.92,143.89,9.70999462]
[1768652066497,2.60096818,143.92,143.89,9.70999462]
[1768652067084,2.57096818,143.92,143.89,9.70999462]
[1768652071385,4.64794386,143.92,143.89,9.70999462]
[1768652072005,2.57096818,143.92,143.89,9.70999462]
[1768652072302,4.64794386,143.92,143.89,9.70999462]
[1768652073606,2.57096818,143.92,143.89,9.70999462]
[1768652073781,2.07697568,143.92,143.9,2.8079556]
[1768652083221,2.56226454,143.91,143.88,9.7581919]
[1768652083524,4.63924022,143.91,143.89,2.8079556]
[1768652084140,4.63924022,143.92,143.89,2.8079556]
[1768652085922,2.56226454,143.92,143.89,9.7576526]
[1768652086310,4.63924022,143.92,143.89,9.7576526]
[1768652086726,4.60924022,143.92,143.89,9.7576526]
[1768652088722,9.51017629,143.93,143.9,2.8079556]
[1768652088899,5.19624982,143.92,143.9,2.8079556]
[1768652089101,11.58715197,143.93,143.9,2.8079556]
[1768652089301,7.27364204,143.92,143.9,2.8079556]
[1768652089606,2.04697565,143.92,143.9,2.8079556]
[1768652090126,11.58715197,143.93,143.9,2.8079556]
[1768652090431,5.19666728,143.92,143.9,2.8079556]
[1768652090602,11.58715197,143.93,143.9,2.8079556]
[1768652091309,9.51017629,143.93,143.9,2.8079556]
[1768652091508,2.07679808,143.92,143.9,2.8079556]
[1768652093233,2.56226454,143.93,143.9,2.8079556]
[1768652093411,2.07679808,143.93,143.91,2.55913877]
[1768652094132,4.83837437,143.93,143.91,2.55913877]
[1768652095227,2.76157629,143.93,143.91,2.55913877]
[1768652098734,4.83837437,143.93,143.91,2.55913877]
[1768652101436,2.76157629,143.93,143.91,2.55913877]
[1768652101732,4.83837437,143.93,143.91,2.55913877]
[1768652101918,2.76157629,143.93,143.88,24.32526996]
[1768652102118,4.83837437,143.93,143.9,2.55913877]
[1768652102535,5.19588571,143.92,143.9,2.55913877]
[1768652102721,4.83837437,143.93,143.9,2.55913877]
[1768652102924,5.19588698,143.92,143.9,2.55913877]
[1768652103123,4.83837437,143.93,143.9,9.50822]
[1768652103322,5.19598579,143.92,143.9,9.50822]
[1768652103621,4.83837437,143.93,143.9,9.50822]
[1768652103820,5.19593174,143.92,143.9,9.50822]